bitfinex/quotes_SOLUSD_20250416
["timestamp","ask_amount","ask_price","bid_price","bid_amount"]
[1744832412982,0.03,130.24,130.19,34.15320508]
[1744832413150,34.18320508,130.24,130.2,34.15320508]
[1744832413352,34.15320508,130.23,130.19,34.15320508]
[1744832413557,34.15320508,130.22,130.17,41.83526418]
[1744832413860,34.15320508,130.22,130.18,34.15320508]
[1744832413861,82.7338,130.21,130.18,34.15320508]
[1744832414070,82.7338,130.21,130.19,34.15320508]
[1744832415257,82.7338,130.21,130.19,41.83412436]
[1744832415471,82.7338,130.21,130.2,34.15320508]
[1744832415675,34.15320508,130.23,130.18,7.68142612]
[1744832415881,34.15320508,130.19,130.13,8.0243]
[1744832416186,34.15320508,130.16,130.11,34.15320508]
[1744832416771,34.15320508,130.17,130.12,34.15320508]
[1744832416959,116.88700508,130.18,130.14,34.15320508]
[1744832417177,34.15320508,130.16,130.12,34.15320508]
[1744832417360,41.83620201,130.16,130.11,41.83854293]
[1744832417561,34.15320508,130.13,130.09,48.50315682]
[1744832417880,34.15320508,130.13,130.09,0.063]
[1744832418059,34.15320508,130.11,130.09,0.063]
[1744832418257,34.15320508,130.11,129.97,0.063]
[1744832418258,177.80814373,130.1,129.97,0.063]
[1744832418461,34.15320508,130.04,130.01,30.063]
[1744832418678,52.89320508,130.05,130.01,30.063]
[1744832418886,18.74,130.05,130.01,34.21620508]
[1744832419054,34.15320508,130.08,130.03,34.15320508]
[1744832419254,26.42717955,130.09,130.03,34.15320508]
[1744832419452,34.15320508,130.06,130.01,34.21620508]
[1744832420170,18.74,130.08,130.04,34.15320508]
[1744832420755,52.89320508,130.08,130.01,7.75458826]
[1744832420973,52.89320508,130.08,130.03,34.15320508]
[1744832421162,41.84087248,130.08,130.03,34.15320508]
[1744832421361,7.6876674,130.08,130.02,34.15320508]
[1744832421558,34.15320508,130.06,130.01,34.21620508]
[1744832421874,34.15320508,130.06,130.02,34.15320508]
[1744832422075,34.15320508,130.05,130.01,0.063]
[1744832422274,34.15320508,130.04,130.01,0.063]
[1744832422477,34.15320508,130.03,130.01,0.063]
[1744832423565,41.8438274,130.03,130.01,0.063]
[1744832423774,34.15320508,130.02,130.01,0.063]
[1744832426481,82.7338,130.03,130.01,0.063]
[1744832426667,34.15320508,130.02,130.01,0.063]
[1744832426862,87.24038216,130.02,130.01,0.063]
[1744832427067,87.38254373,130.02,130.01,0.063]
[1744832427689,95.07366817,130.02,130.01,0.063]
[1744832428379,44.79181043,129.98,129.97,0.063]
[1744832428690,97.98933865,129.98,129.97,0.063]
[1744832429687,105.54066838,129.98,129.97,0.063]
[1744832429985,60.60669638,129.98,129.97,0.063]
[1744832430379,18.76,129.98,129.97,0.063]
[1744832431087,52.91320508,129.98,129.97,0.063]
[1744832431671,18.76,129.98,129.97,0.063]
[1744832434475,60.60669638,129.98,129.97,0.063]
[1744832434772,79.54066838,129.98,129.97,0.063]
[1744832434978,79.68282995,129.98,129.97,0.063]
[1744832435487,79.54066838,129.98,129.97,0.063]
[1744832435680,60.60669638,129.98,129.97,0.063]
[1744832435994,18.76,129.98,129.97,0.063]
[1744832436163,41.84514527,130.01,129.97,0.063]
[1744832436364,34.15320508,130.0,129.97,0.063]
[1744832437891,34.15320508,130.01,129.97,0.063]
[1744832438062,34.15320508,130.0,129.97,0.063]
[1744832438261,34.15320508,129.99,129.97,0.063]
[1744832438880,18.933972,130.01,129.97,0.063]
[1744832439078,34.15320508,130.01,129.97,0.063]
[1744832439291,101.58,130.02,129.97,34.21620508]
[1744832439470,34.15320508,130.01,129.97,34.21620508]
[1744832439668,34.15320508,130.01,129.97,0.063]
[1744832440390,101.58,130.02,129.98,34.15320508]
[1744832440565,135.73320508,130.02,129.98,34.15320508]
[1744832440987,101.58,130.02,130.0,34.15320508]
[1744832441287,82.8,130.04,130.01,34.15320508]
[1744832441466,82.8,130.04,130.03,34.15320508]
[1744832441666,34.15320508,130.06,130.01,41.84466484]
[1744832442680,34.15320508,130.05,130.0,34.15320508]
[1744832442869,116.95320508,130.05,130.0,34.15320508]
[1744832443283,34.15320508,130.04,130.0,34.15320508]
[1744832443505,34.15320508,130.04,129.99,34.15320508]
[1744832443821,34.15320508,130.02,129.98,6.623]
[1744832444018,18.78,130.02,129.97,0.063]
[1744832444307,34.15320508,129.99,129.97,0.063]
[1744832444495,34.15320508,130.0,129.97,0.063]
[1744832444888,82.8,130.01,129.97,0.063]
[1744832445216,82.8,130.01,129.98,34.15320508]
[1744832446092,82.8,130.01,129.99,34.15320508]
[1744832446284,82.8,130.01,130.0,34.15320508]
[1744832446485,82.8,130.05,130.0,34.15320508]
[1744832446712,82.8,130.04,130.02,41.84397868]
[1744832447093,82.8,130.04,130.03,34.15320508]
[1744832447284,101.58,130.06,130.03,34.15320508]
[1744832447687,82.8,130.06,130.05,34.15320508]
[1744832447886,0.03,130.07,130.05,34.15320508]
[1744832448815,0.03,130.07,130.04,34.15320508]
[1744832449316,0.03,130.07,130.05,34.15320508]
[1744832449503,0.03,130.07,130.06,34.15320508]
[1744832450807,0.03,130.07,130.03,41.84367916]
[1744832451315,0.03,130.07,130.04,34.15320508]
[1744832451816,0.03,130.07,130.06,34.15320508]
[1744832453007,0.03,130.07,130.06,41.84196411]
[1744832454811,0.03,130.07,130.06,34.15320508]
[1744832456307,0.03,130.07,130.06,41.84196411]
[1744832460516,0.03,130.07,130.06,34.15320508]
[1744832461022,0.03,130.07,130.06,41.84196411]
[1744832461219,0.03,130.07,130.06,67.84196411]
[1744832461519,0.03,130.1,130.06,127.59156677]
[1744832461707,0.03,130.1,130.09,34.15320508]
[1744832462521,0.03,130.1,130.09,41.84019101]
[1744832462901,0.03,130.1,130.07,7.6881679]
[1744832463118,0.03,130.1,130.08,34.15320508]
[1744832463321,0.03,130.1,130.07,34.15320508]
[1744832463504,34.15320508,130.09,130.05,7.6889245]
[1744832463703,0.03,130.1,130.07,34.15320508]
[1744832464396,0.03,130.1,130.07,41.84115284]
[1744832464644,34.18320508,130.1,130.06,34.15320508]
[1744832464802,34.15320508,130.09,130.04,41.84314663]
[1744832465127,34.18320508,130.1,130.05,34.15320508]
[1744832465626,34.18320508,130.1,130.06,34.15320508]
[1744832465931,34.18320508,130.1,130.04,7.68994155]
[1744832465932,34.18320508,130.1,130.05,34.15320508]
[1744832466235,34.15320508,130.09,130.05,34.15320508]
[1744832466534,34.15320508,130.09,130.05,41.84236642]
[1744832467139,7.71660122,130.1,130.05,41.84236642]
[1744832467140,0.03,130.1,130.06,34.15320508]
[1744832467637,0.03,130.1,130.08,34.15320508]
[1744832467936,0.03,130.1,130.09,34.15320508]
[1744832468741,0.03,130.1,130.09,41.84019101]
[1744832469237,0.03,130.15,130.09,61.05765584]
[1744832469407,0.03,130.15,130.14,34.15320508]
[1744832470901,0.03,130.15,130.14,41.83723766]
[1744832471332,0.03,130.15,130.13,41.83757371]
[1744832471525,0.03,130.15,130.14,34.15320508]
[1744832474041,0.03,130.15,130.14,41.83723766]
[1744832474250,0.03,130.16,130.14,84.13284274]
[1744832474538,0.03,130.16,130.15,34.15320508]
[1744832475437,0.03,130.16,130.15,41.83664726]
[1744832478517,0.03,130.16,130.15,34.15320508]
[1744832478724,0.03,130.16,130.13,34.15320508]
[1744832478921,34.18320508,130.16,130.08,52.87320508]
[1744832479252,34.15320508,130.13,130.09,37.68698593]
[1744832479455,34.15320508,130.13,130.04,18.72]
[1744832479456,34.15320508,130.1,130.04,34.15320508]
[1744832479739,34.15320508,130.06,130.01,41.8449211]
[1744832479956,7.68698593,130.09,130.03,34.15320508]
[1744832480246,34.15320508,130.07,130.03,30.0]
[1744832480437,34.15320508,130.06,130.01,41.8449211]
[1744832480751,18.72,130.07,129.97,19.29795794]
[1744832480939,18.72,130.07,130.03,34.15320508]
[1744832481141,18.72,130.07,130.04,34.15320508]
[1744832481342,18.72,130.11,130.06,34.15320508]
[1744832481655,18.72,130.11,130.08,34.15320508]
[1744832481947,18.72,130.11,130.09,34.15320508]
[1744832482252,18.72,130.11,130.08,34.15320508]
[1744832482440,52.87320508,130.11,130.07,34.15320508]
[1744832482952,34.15320508,130.1,130.06,34.15320508]
[1744832483253,34.15320508,130.1,130.05,34.15320508]
[1744832483443,34.15320508,130.1,130.01,44.72]
[1744832483444,34.15320508,130.08,130.01,44.72]
[1744832483651,7.6881679,130.07,130.03,34.15320508]
[1744832483946,34.15320508,130.08,130.03,34.15320508]
[1744832484159,34.15320508,130.08,130.04,34.15320508]
[1744832484339,34.15320508,130.08,130.03,34.15320508]
[1744832484755,41.84112314,130.08,130.03,34.15320508]
[1744832484938,34.15320508,130.04,129.99,34.15320508]
[1744832485142,60.2775671,130.05,130.0,60.2775671]
[1744832485850,18.72,130.06,129.97,7.75684839]
[1744832485851,60.2775671,130.02,129.97,7.75684839]
[1744832486024,60.2775671,130.02,129.97,68.03441549]
[1744832486555,60.2775671,130.05,130.0,60.2775671]
[1744832487058,67.96692183,130.05,130.0,67.96975113]
[1744832487551,60.2775671,130.05,130.0,67.96975113]
[1744832487745,86.68653174,130.06,130.01,60.2775671]
[1744832488256,60.2775671,130.05,130.01,60.2775671]
[1744832488547,26.40896464,130.06,130.01,60.2775671]
[1744832488753,86.68653174,130.06,130.01,67.969047]
[1744832489555,60.2775671,130.05,130.01,67.969047]
[1744832489740,60.2775671,130.05,130.0,60.2775671]
[1744832490056,60.2775671,130.05,130.01,60.2775671]
[1744832490751,18.72,130.06,129.98,26.92721956]
[1744832490752,18.72,130.06,130.03,60.2775671]
[1744832491141,18.72,130.06,130.02,67.96869154]
[1744832491645,60.2775671,130.09,130.04,60.2775671]
[1744832491845,60.2775671,130.08,130.03,60.2775671]
[1744832492722,60.2775671,130.08,130.01,67.96914038]
[1744832492723,26.62154887,130.08,130.01,67.96914038]
[1744832492927,60.2775671,130.05,130.0,67.96964172]
[1744832493141,60.2775671,130.04,129.99,67.97022955]
[1744832493348,60.2775671,130.04,129.97,0.063]
[1744832493349,60.2775671,130.01,129.97,0.063]
[1744832493558,0.28432314,130.03,129.97,60.3405671]
[1744832493759,84.7093391,130.04,129.99,60.2775671]
[1744832493924,68.2753671,130.04,129.99,60.2775671]
[1744832494346,79.0175671,130.05,130.0,60.2775671]
[1744832494549,6.2033,130.07,130.03,60.2775671]
[1744832494750,258.56,130.09,130.05,60.2775671]
[1744832494965,60.2775671,130.12,130.07,60.2775671]
[1744832495140,112.70235759,130.13,130.04,26.91452928]
[1744832495346,60.2775671,130.11,130.04,7.68967539]
[1744832495653,60.2775671,130.11,130.06,60.2775671]
[1744832496037,60.2775671,130.1,130.06,60.2775671]
[1744832496230,60.2775671,130.09,130.04,60.2775671]
[1744832496426,0.42648471,130.11,130.04,60.2775671]
[1744832496656,60.2775671,130.09,130.04,60.2775671]
[1744832496862,60.2775671,130.09,130.04,67.96745725]
[1744832497037,7.68677524,130.1,130.04,67.96745725]
[1744832497242,60.2775671,130.09,130.04,67.96745725]
[1744832497449,60.2775671,130.09,130.05,60.2775671]
[1744832497666,60.2775671,130.06,129.97,6.206]
[1744832497871,60.2775671,130.05,130.0,60.2775671]
[1744832498455,60.2775671,130.07,130.03,60.2775671]
[1744832498656,18.74,130.08,130.0,0.28432314]
[1744832498872,18.74,130.08,130.05,67.96638358]
[1744832499742,18.74,130.08,130.06,60.2775671]
[1744832500855,18.74,130.08,130.06,67.96609625]
[1744832501165,79.0175671,130.08,130.03,60.2775671]
[1744832501345,79.0175671,130.08,130.01,26.92100607]
[1744832501543,60.2775671,130.07,130.02,60.2775671]
[1744832501748,60.2775671,130.05,130.0,67.96962179]
[1744832502056,60.2775671,130.05,130.01,60.2775671]
[1744832502262,60.2775671,130.06,130.01,60.2775671]
[1744832502862,67.96614273,130.07,130.02,60.2775671]
[1744832503064,18.74,130.08,130.03,60.2775671]
[1744832503245,86.7053445,130.08,130.03,60.2775671]
[1744832503439,86.70519078,130.08,130.03,60.2775671]
[1744832503847,18.74,130.08,130.05,60.2775671]
[1744832504973,94.68653971,130.11,130.06,60.2775671]
[1744832505541,18.74,130.12,130.08,60.2775671]
[1744832505983,18.74,130.12,130.1,60.2775671]
[1744832506275,18.74,130.12,130.09,60.2775671]
[1744832506446,18.74,130.12,130.04,32.5586]
[1744832506646,18.74,130.12,130.08,60.2775671]
[1744832507146,18.74,130.12,130.08,67.96504108]
[1744832507352,18.74,130.12,130.08,60.2775671]
[1744832507873,18.74,130.12,130.1,60.2775671]
[1744832508376,18.74,130.12,130.08,7.68745156]
[1744832508681,18.74,130.12,130.09,60.2775671]
[1744832509247,67.96177436,130.14,130.09,60.2775671]
[1744832509449,7.68420726,130.14,130.09,60.2775671]
[1744832509671,60.2775671,130.13,130.09,60.2775671]
[1744832509888,67.96177436,130.14,130.09,60.2775671]
[1744832513270,47.37249414,130.14,130.09,39.68828688]
[1744832514082,7.68420726,130.14,130.09,39.68828688]
[1744832514256,47.37249414,130.14,130.09,39.68828688]
[1744832515304,47.37249414,130.14,130.04,51.78339914]
[1744832515600,39.68828688,130.12,130.08,39.68828688]
[1744832515779,39.68828688,130.13,130.08,39.68828688]
[1744832517908,7.68420726,130.14,130.1,39.68828688]
[1744832518196,0.03,130.16,130.13,39.68828688]
[1744832518518,0.03,130.16,130.09,26.0]
[1744832518678,0.03,130.16,130.13,39.68828688]
[1744832518879,0.03,130.16,130.1,7.68639508]
[1744832519101,0.03,130.16,130.13,39.68828688]
[1744832520003,0.03,130.16,130.12,39.68828688]
[1744832520877,39.71828688,130.16,130.09,26.0]
[1744832521198,39.71828688,130.16,130.11,39.68828688]
[1744832521690,0.03,130.16,130.15,39.68828688]
[1744832522400,0.03,130.16,130.14,39.68828688]
[1744832522569,0.03,130.16,130.15,47.37172906]
[1744832523080,0.03,130.16,130.15,39.68828688]
[1744832523272,0.03,130.16,130.15,47.37172906]
[1744832527693,0.03,130.18,130.17,26.0]
[1744832527899,0.03,130.18,130.17,65.68828688]
[1744832528791,0.03,130.18,130.17,79.51784853]
[1744832531016,0.03,130.18,130.16,7.68259436]
[1744832531303,0.03,130.18,130.17,39.68828688]
[1744832531606,0.03,130.18,130.15,7.68333034]
[1744832531800,39.68828688,130.17,130.11,7.68580431]
[1744832532108,39.68828688,130.17,130.13,39.68828688]
[1744832532904,39.68828688,130.17,130.13,47.37283825]
[1744832533297,0.03,130.18,130.15,39.68828688]
[1744832533899,0.03,130.18,130.14,39.68828688]
[1744832534081,0.03,130.18,130.17,39.68828688]
[1744832534276,0.03,130.21,130.17,65.68828688]
[1744832534578,0.03,130.21,130.2,39.68828688]
[1744832534783,0.03,130.21,130.2,47.36877843]
[1744832535207,0.03,130.21,130.2,67.76263497]
[1744832535501,0.03,130.21,130.2,127.84477839]
[1744832536404,0.03,130.21,130.2,67.76263497]
[1744832536581,0.03,130.21,130.18,7.68109172]
[1744832536783,0.03,130.21,130.2,67.76263497]
[1744832540693,0.03,130.21,130.2,127.84477839]
[1744832541224,0.03,130.24,130.2,173.04600726]
[1744832541403,0.03,130.24,130.23,60.08214342]
[1744832543015,0.03,130.24,130.2,112.96386384]
[1744832543016,0.03,130.24,130.22,67.76128118]
[1744832543221,0.03,130.24,130.21,67.76184526]
[1744832543389,0.03,130.24,130.23,60.08214342]
[1744832545094,0.03,130.24,130.23,67.76086568]
[1744832548312,0.03,130.24,130.22,60.08214342]
[1744832548620,0.03,130.24,130.21,60.08214342]
[1744832549107,0.03,130.24,130.21,67.76156119]
[1744832549306,0.03,130.24,130.23,60.08214342]
[1744832549506,0.03,130.24,130.22,60.08214342]
[1744832550232,0.03,130.24,130.23,60.08214342]
[1744832551103,0.03,130.24,130.23,67.76086568]
[1744832553825,0.03,130.24,130.23,7.67872226]
[1744832554042,0.03,130.24,130.21,60.08214342]
[1744832554407,0.03,130.24,130.22,60.08214342]
[1744832554717,0.03,130.24,130.23,60.08214342]
[1744832554911,0.03,130.24,130.21,60.08214342]
[1744832555111,0.03,130.24,130.23,39.60542034]
[1744832555526,0.03,130.24,130.22,39.60542034]
[1744832555830,0.03,130.24,130.23,39.60542034]
[1744832556414,0.03,130.24,130.22,39.60542034]
[1744832556622,0.03,130.24,130.21,47.28532203]
[1744832557016,0.03,130.24,130.2,47.28571808]
[1744832557434,0.03,130.24,130.21,39.60542034]
[1744832558322,0.03,130.24,130.22,39.60542034]
[1744832558512,0.03,130.24,130.23,39.60542034]
[1744832559643,0.03,130.24,130.21,39.60542034]
[1744832560434,0.03,130.24,130.22,39.60542034]
[1744832561144,0.03,130.24,130.23,39.60542034]
[1744832561322,0.03,130.24,130.22,47.28423423]
[1744832561528,0.03,130.24,130.19,7.68108149]
[1744832561724,0.03,130.24,130.21,39.60542034]
[1744832562037,0.03,130.24,130.23,39.60542034]
[1744832563114,0.03,130.24,130.21,39.60542034]
[1744832563316,0.03,130.24,130.22,47.28473227]
[1744832563559,0.03,130.24,130.23,39.60542034]
[1744832563950,0.03,130.24,130.22,47.28473227]
[1744832564154,0.03,130.24,130.21,39.60542034]
[1744832564734,0.03,130.24,130.2,39.60542034]
[1744832564921,82.8,130.23,130.2,39.60542034]
[1744832565118,82.8,130.23,130.21,39.60542034]
[1744832565631,82.8,130.23,130.2,47.28566979]
[1744832565828,82.8,130.23,130.17,19.2053646]
[1744832566034,82.8,130.23,130.19,39.60542034]
[1744832566244,82.8,130.23,130.2,39.60542034]
[1744832568346,0.03,130.24,130.21,39.60542034]
[1744832568554,0.03,130.24,130.22,39.60542034]
[1744832568856,0.03,130.24,130.21,39.60542034]
[1744832569052,0.03,130.24,130.22,39.60542034]
[1744832569353,0.03,130.24,130.23,39.60542034]
[1744832569552,0.03,130.24,130.23,47.2841426]
[1744832571160,1e-08,130.24,130.23,47.2841426]
[1744832574619,0.03,130.26,130.25,33.7857]
[1744832574620,1e-08,130.26,130.25,33.7857]
[1744832574835,0.03,130.3,130.26,0.28432314]
[1744832575034,0.03,130.3,130.29,65.60542034]
[1744832575234,0.03,130.32,130.31,26.0]
[1744832575466,0.03,130.32,130.31,65.60542034]
[1744832576147,0.03,130.32,130.31,26.0]
[1744832576464,0.03,130.32,130.28,18.66]
[1744832576465,1.631,130.32,130.27,39.60542034]
[1744832576651,1.631,130.32,130.28,39.60542034]
[1744832577242,1.631,130.32,130.29,39.60542034]
[1744832577548,0.03,130.32,130.3,39.60542034]
[1744832577749,0.03,130.32,130.31,39.60542034]
[1744832578347,0.03,130.32,130.31,47.27942847]
[1744832578569,0.03,130.32,130.31,7.67400813]
[1744832578758,0.03,130.32,130.31,47.27942847]
[1744832580371,0.03,130.32,130.27,19.19080725]
[1744832580558,0.03,130.32,130.3,39.60542034]
[1744832580744,0.03,130.32,130.28,47.28119559]
[1744832580949,0.03,130.32,130.28,39.60542034]
[1744832580950,39.63542034,130.32,130.28,39.60542034]
[1744832581173,0.03,130.32,130.28,39.60542034]
[1744832581475,82.8,130.31,130.28,39.60542034]
[1744832581855,122.40542034,130.3,130.25,39.60542034]
[1744832582059,39.60542034,130.29,130.25,39.60542034]
[1744832582268,39.60542034,130.28,130.24,47.28335591]
[1744832582446,39.60542034,130.29,130.24,47.28335591]
[1744832582652,122.40542034,130.3,130.25,39.60542034]
[1744832582866,122.40542034,130.3,130.26,39.60542034]
[1744832583070,82.8,130.3,130.27,39.60542034]
[1744832584273,82.83,130.32,130.29,39.60542034]
[1744832584470,82.83,130.32,130.27,26.0]
[1744832584471,82.83,130.32,130.31,39.60542034]
[1744832584666,82.83,130.32,130.28,39.60542034]
[1744832584969,82.83,130.32,130.29,39.60542034]
[1744832585169,82.83,130.32,130.3,39.60542034]
[1744832585376,82.83,130.32,130.31,39.60542034]
[1744832586091,82.8,130.31,130.24,39.60542034]
[1744832586377,39.60542034,130.29,130.25,7.67754318]
[1744832586680,39.60542034,130.26,130.22,7.67931193]
[1744832586859,39.60542034,130.26,130.22,47.28473227]
[1744832587059,39.60542034,130.27,130.22,47.28473227]
[1744832587451,39.60542034,130.26,130.22,7.67931193]
[1744832587652,39.60542034,130.27,130.22,47.28473227]
[1744832587848,39.60542034,130.27,130.23,39.60542034]
[1744832588373,122.40542034,130.28,130.25,7.67754318]
[1744832588579,122.40542034,130.28,130.23,47.2841426]
[1744832588964,82.8,130.28,130.24,39.60542034]
[1744832589274,122.40542034,130.28,130.23,47.2841426]
[1744832589476,82.8,130.28,130.24,39.60542034]
[1744832589681,82.8,130.28,130.25,39.60542034]
[1744832589897,82.8,130.31,130.27,39.60542034]
[1744832590390,122.40542034,130.31,130.27,7.67636447]
[1744832590890,82.8,130.31,130.27,47.28178481]
[1744832591092,82.8,130.31,130.28,39.60542034]
[1744832591479,39.60542034,130.3,130.25,39.60542034]
[1744832591663,39.60542034,130.29,130.23,45.19665254]
[1744832591868,39.60542034,130.27,130.22,47.28473227]
[1744832592092,82.8,130.26,130.22,7.67931193]
[1744832592389,82.8,130.26,130.18,1.5888]
[1744832592390,130.0825668,130.26,130.21,47.28523922]
[1744832592605,122.40542034,130.26,130.21,47.28523922]
[1744832592771,122.40542034,130.26,130.2,39.60542034]
[1744832592772,39.60542034,130.24,130.2,39.60542034]
[1744832593095,39.60542034,130.24,130.19,47.28650183]
[1744832593299,82.8,130.23,130.19,47.28650183]
[1744832593487,82.8,130.23,130.2,39.60542034]
[1744832594087,82.8,130.23,130.2,47.28538596]
[1744832594494,82.8,130.23,130.21,39.60542034]
[1744832594678,82.8,130.23,130.22,39.60542034]
[1744832595001,82.8,130.28,130.22,39.60542034]
[1744832595171,68.0878754,130.29,130.24,60.0510754]
[1744832595379,8.0368,130.29,130.25,60.0510754]
[1744832595576,82.8,130.28,130.26,60.0510754]
[1744832596600,101.46,130.31,130.27,67.72701937]
[1744832597483,101.46,130.31,130.28,60.0510754]
[1744832597484,82.8,130.31,130.28,60.0510754]
[1744832597687,1.5598,130.32,130.27,7.67594397]
[1744832597688,61.6108754,130.32,130.27,7.67594397]
[1744832597890,61.6108754,130.32,130.27,67.72701937]
[1744832598185,1.5598,130.32,130.29,7.67518612]
[1744832598389,1.5598,130.32,130.29,67.72626152]
[1744832598593,0.03,130.32,130.29,67.72626152]
[1744832599477,0.03,130.32,130.31,60.0510754]
[1744832600501,0.03,130.32,130.31,67.72508353]
[1744832602912,0.03,130.32,130.31,7.67400813]
[1744832603212,0.03,130.32,130.31,60.0510754]
[1744832604603,0.03,130.32,130.31,67.72508353]
[1744832604909,2.7261876,130.33,130.31,93.72508353]
[1744832605121,2.7261876,130.33,130.32,60.0510754]
[1744832606197,2.7261876,130.33,130.32,67.72449467]
[1744832612113,1e-08,130.33,130.32,67.72449467]
[1744832612614,1e-08,130.33,130.32,128.77557007]
[1744832612813,1e-08,130.33,130.32,147.39557007]
[1744832613018,1e-08,130.33,130.32,86.34449467]
[1744832613796,1e-08,130.33,130.32,147.67989321]
[1744832613997,1e-08,130.33,130.32,149.31389321]
[1744832614215,0.03,130.36,130.35,26.0]
[1744832614418,0.03,130.36,130.35,93.72272864]
[1744832615209,1e-08,130.36,130.35,73.17690344]
[1744832615524,1e-08,130.37,130.35,73.17690344]
[1744832615720,1e-08,130.37,130.36,39.5052502]
[1744832616324,1e-08,130.37,130.36,47.17631494]
[1744832616522,97.15794052,130.4,130.39,26.0]
[1744832616853,97.15794052,130.4,130.39,65.5052502]
[1744832617164,97.15794052,130.4,130.38,39.5052502]
[1744832617842,97.15794052,130.4,130.39,39.5052502]
[1744832618454,97.15794052,130.4,130.39,47.17454999]
[1744832620522,97.15794052,130.4,130.39,73.17454999]
[1744832621636,97.15794052,130.4,130.39,33.66929979]
[1744832622226,97.15794052,130.4,130.39,73.17454999]
[1744832623737,97.15794052,130.4,130.39,7.66929979]
[1744832623924,97.15794052,130.4,130.39,47.17454999]
[1744832624515,97.15794052,130.4,130.39,73.17454999]
[1744832626309,97.15794052,130.4,130.33,65.21807869]
[1744832626515,97.15794052,130.4,130.38,39.5052502]
[1744832626720,97.15794052,130.4,130.39,39.5052502]
[1744832627637,97.15794052,130.4,130.39,65.5052502]
[1744832628831,97.15794052,130.4,130.39,73.17454999]
[1744832629744,12.25851237,130.4,130.39,73.17454999]
[1744832629919,46.0282502,130.46,130.39,92.34779947]
[1744832630119,46.0282502,130.46,130.41,39.5052502]
[1744832630531,6.523,130.46,130.42,39.5052502]
[1744832630727,6.523,130.46,130.43,39.5052502]
[1744832631438,39.5052502,130.44,130.4,26.84049079]
[1744832631636,46.0282502,130.46,130.41,39.5052502]
[1744832631837,39.5052502,130.45,130.4,66.34574099]
[1744832632226,82.8,130.44,130.4,47.17396185]
[1744832632431,89.323,130.46,130.4,7.66871165]
[1744832632741,89.323,130.46,130.43,7.66694778]
[1744832633548,89.323,130.46,130.43,47.17219798]
[1744832633734,82.83,130.46,130.44,39.5052502]
[1744832633930,82.83,130.46,130.45,39.5052502]
[1744832634164,0.03,130.46,130.45,39.5052502]
[1744832634326,82.8,130.51,130.45,65.5052502]
[1744832634640,82.8,130.51,130.49,7.66342248]
[1744832636225,82.8,130.51,130.48,47.16905482]
[1744832636426,82.8,130.51,130.48,39.5052502]
[1744832636628,39.5052502,130.49,130.44,26.0]
[1744832636834,39.5052502,130.49,130.45,39.5052502]
[1744832637227,82.8,130.5,130.45,39.5052502]
[1744832637428,122.3052502,130.5,130.45,39.5052502]
[1744832637729,39.5052502,130.47,130.43,39.5052502]
[1744832637929,82.8,130.46,130.43,39.5052502]
[1744832638536,122.3052502,130.46,130.42,33.66753565]
[1744832638735,82.8,130.46,130.42,73.17278585]
[1744832639124,82.8,130.46,130.43,39.5052502]
[1744832639330,82.8,130.46,130.44,39.5052502]
[1744832640345,82.8,130.46,130.43,39.5052502]
[1744832640637,82.8,130.46,130.42,73.17278585]
[1744832640839,82.8,130.46,130.43,39.5052502]
[1744832641041,82.8,130.46,130.44,39.5052502]
[1744832641241,82.8,130.46,130.45,39.5052502]
[1744832641649,101.38,130.49,130.45,39.5052502]
[1744832641848,101.38,130.49,130.47,39.5052502]
[1744832642054,82.8,130.53,130.48,39.5052502]
[1744832642337,18.61,130.54,130.5,39.5052502]
[1744832642542,82.8,130.53,130.5,39.5052502]
[1744832642740,122.3052502,130.53,130.48,47.16926]
[1744832643159,82.8,130.53,130.49,39.5052502]
[1744832643340,122.3052502,130.53,130.49,39.5052502]
[1744832643747,82.8,130.53,130.5,39.5052502]
[1744832644338,39.5052502,130.52,130.48,47.16926]
[1744832644660,82.8,130.53,130.5,39.5052502]
[1744832644955,82.8,130.53,130.5,47.16784113]
[1744832645256,82.8,130.53,130.51,39.5052502]
[1744832645654,82.8,130.53,130.5,47.16784113]